[Event "Titled Tuesday Blitz March 29 Early 2022"]
[White "Demchenko, Anton"]
[Black "Perez Gormaz, Matias"]
[WhiteFideId "4160258"]
[BlackFideId "3406342"]
[WhiteElo "2539"]
[BlackElo "2327"]
[Result "1-0"]
[Round "08"]
[TimeControl "180+1"]
[Date "2022.03.29"]
[WhiteClock "0:00:22"]
[BlackClock "0:00:02"]

1. e4 {[%clk 0:02:59]}  e5 {[%clk 0:03:00]} 2. Nf3 {[%clk 0:02:59]}  Nc6 {[%clk 0:03:00]} 3. Bc4 {[%clk 0:02:59]}  Nf6 {[%clk 0:03:00]} 4. d3 {[%clk 0:03:00]}  Bc5 {[%clk 0:03:00]} 5. Bg5 {[%clk 0:03:00]}  h6 {[%clk 0:02:59]} 6. Bh4 {[%clk 0:03:01]}  Be7 {[%clk 0:02:54]} 7. Bg3 {[%clk 0:03:01]}  d6 {[%clk 0:02:53]} 8. a4 {[%clk 0:03:02]}  Be6 {[%clk 0:02:53]} 9. Bxe6 {[%clk 0:03:01]}  fxe6 {[%clk 0:02:53]} 10. c3 {[%clk 0:03:02]}  O-O {[%clk 0:02:50]} 11. O-O {[%clk 0:03:02]}  Qe8 {[%clk 0:02:45]} 12. Qb3 {[%clk 0:03:02]}  Nd8 {[%clk 0:02:44]} 13. Nbd2 {[%clk 0:02:59]}  Nh5 {[%clk 0:02:36]} 14. d4 {[%clk 0:02:56]}  exd4 {[%clk 0:02:36]} 15. cxd4 {[%clk 0:02:57]}  Kh8 {[%clk 0:02:36]} 16. a5 {[%clk 0:02:55]}  a6 {[%clk 0:02:17]} 17. Rac1 {[%clk 0:02:54]}  Rc8 {[%clk 0:01:55]} 18. Nc4 {[%clk 0:02:51]}  Qd7 {[%clk 0:01:49]} 19. Rc2 {[%clk 0:02:45]}  Nc6 {[%clk 0:01:38]} 20. Rd1 {[%clk 0:02:29]}  Rb8 {[%clk 0:01:35]} 21. d5 {[%clk 0:02:19]}  exd5 {[%clk 0:01:31]} 22. exd5 {[%clk 0:02:20]}  Nd8 {[%clk 0:01:07]} 23. Ne3 {[%clk 0:02:14]}  Bf6 {[%clk 0:00:58]} 24. Rdc1 {[%clk 0:02:12]}  Rc8 {[%clk 0:00:47]} 25. Qb4 {[%clk 0:02:00]}  Re8 {[%clk 0:00:44]} 26. b3 {[%clk 0:01:21]}  Nxg3 {[%clk 0:00:34]} 27. hxg3 {[%clk 0:01:20]}  Re7 {[%clk 0:00:31]} 28. g4 {[%clk 0:01:17]}  g6 {[%clk 0:00:18]} 29. Qf4 {[%clk 0:01:12]}  Kg7 {[%clk 0:00:17]} 30. g5 {[%clk 0:01:10]}  hxg5 {[%clk 0:00:17]} 31. Nxg5 {[%clk 0:01:11]}  Qe8 {[%clk 0:00:06]} 32. Rc4 {[%clk 0:01:03]}  Bxg5 {[%clk 0:00:06]} 33. Qxg5 {[%clk 0:01:03]}  Nf7 {[%clk 0:00:07]} 34. Nf5+ {[%clk 0:00:59]}  Kf8 {[%clk 0:00:05]} 35. Qxg6 {[%clk 0:00:53]}  Re1+ {[%clk 0:00:02]} 36. Kh2 {[%clk 0:00:48]}  Qe5+ {[%clk 0:00:02]} 37. f4 {[%clk 0:00:47]}  Qh8+ {[%clk 0:00:03]} 38. Kg3 {[%clk 0:00:45]}  Rxc1 {[%clk 0:00:03]} 39. Rxc1 {[%clk 0:00:45]}  c5 {[%clk 0:00:01]} 40. Nxd6 {[%clk 0:00:30]}  Rc7 {[%clk 0:00:02]} 41. Nf5 {[%clk 0:00:22]} 1-0


[Site "https://www.chess.com"]

[Event "Titled Tuesday Blitz March 29 Early 2022"]
[White "Garv Gaur"]
[Black "Skliarov, Viktor"]
[WhiteFideId "45030839"]
[BlackFideId "14106736"]
[WhiteElo "1950"]
[BlackElo "2229"]
[Result "1/2-1/2"]
[Round "08"]
[TimeControl "180+1"]
[Date "2022.03.30"]
[WhiteClock "0:01:02"]
[BlackClock "0:00:06"]

1. d4 {[%clk 0:03:00]}  Nf6 {[%clk 0:02:59]} 2. Nf3 {[%clk 0:03:00]}  g6 {[%clk 0:02:55]} 3. c4 {[%clk 0:03:00]}  Bg7 {[%clk 0:02:51]} 4. g3 {[%clk 0:03:00]}  O-O {[%clk 0:02:51]} 5. Bg2 {[%clk 0:03:00]}  c6 {[%clk 0:02:51]} 6. O-O {[%clk 0:02:58]}  d5 {[%clk 0:02:52]} 7. a4 {[%clk 0:02:58]}  Ne4 {[%clk 0:02:43]} 8. Nc3 {[%clk 0:02:56]}  Bf5 {[%clk 0:02:24]} 9. a5 {[%clk 0:02:56]}  Na6 {[%clk 0:02:21]} 10. Ne5 {[%clk 0:02:52]}  Nxc3 {[%clk 0:02:02]} 11. bxc3 {[%clk 0:02:51]}  Bxe5 {[%clk 0:02:03]} 12. dxe5 {[%clk 0:02:52]}  dxc4 {[%clk 0:02:03]} 13. Qa4 {[%clk 0:02:45]}  Be6 {[%clk 0:01:59]} 14. Bh6 {[%clk 0:02:43]}  Re8 {[%clk 0:01:59]} 15. Rab1 {[%clk 0:02:27]}  Qc7 {[%clk 0:01:50]} 16. Be3 {[%clk 0:02:17]}  Red8 {[%clk 0:00:51]} 17. Rfd1 {[%clk 0:01:58]}  Rxd1+ {[%clk 0:00:46]} 18. Rxd1 {[%clk 0:01:59]}  Rd8 {[%clk 0:00:46]} 19. Bxa7 {[%clk 0:01:51]}  Rxd1+ {[%clk 0:00:41]} 20. Qxd1 {[%clk 0:01:52]}  Qxa5 {[%clk 0:00:33]} 21. Qb1 {[%clk 0:01:39]}  Qxc3 {[%clk 0:00:27]} 22. h4 {[%clk 0:01:22]}  Qb3 {[%clk 0:00:19]} 23. Qc1 {[%clk 0:01:13]}  c3 {[%clk 0:00:20]} 24. Be4 {[%clk 0:01:13]}  Qb2 {[%clk 0:00:19]} 25. Qg5 {[%clk 0:01:10]}  Qxe2 {[%clk 0:00:13]} 26. Qxe7 {[%clk 0:01:04]}  Qxe4 {[%clk 0:00:05]} 27. Qd8+ {[%clk 0:01:03]}  Kg7 {[%clk 0:00:06]} 28. Qf6+ {[%clk 0:01:03]}  Kg8 {[%clk 0:00:05]} 29. Qd8+ {[%clk 0:01:03]}  Kg7 {[%clk 0:00:05]} 30. Qf6+ {[%clk 0:01:03]}  Kg8 {[%clk 0:00:06]} 31. Qd8+ {[%clk 0:01:02]} 1/2-1/2


[Site "https://www.chess.com"]

[Event "Titled Tuesday Blitz March 29 Early 2022"]
[White "Golubev, Mikhail"]
[Black "Vysochin, Spartak"]
[WhiteFideId "14100983"]
[BlackFideId "14103516"]
[WhiteElo "2374"]
[BlackElo "2385"]
[Result "0-1"]
[Round "08"]
[TimeControl "180+1"]
[Date "2022.03.30"]
[WhiteClock "0:01:47"]
[BlackClock "0:02:45"]

1. d4 {[%clk 0:03:00]}  d5 {[%clk 0:02:59]} 2. c4 {[%clk 0:03:00]}  c6 {[%clk 0:02:59]} 3. Nc3 {[%clk 0:02:59]}  Nf6 {[%clk 0:02:59]} 4. Nf3 {[%clk 0:02:59]}  dxc4 {[%clk 0:02:59]} 5. a4 {[%clk 0:02:56]}  Bf5 {[%clk 0:02:57]} 6. Ne5 {[%clk 0:02:55]}  e6 {[%clk 0:02:54]} 7. f3 {[%clk 0:02:54]}  Bb4 {[%clk 0:02:54]} 8. e4 {[%clk 0:02:52]}  Bxe4 {[%clk 0:02:53]} 9. fxe4 {[%clk 0:02:51]}  Nxe4 {[%clk 0:02:53]} 10. Qf3 {[%clk 0:02:12]}  Qxd4 {[%clk 0:02:51]} 11. Qxf7+ {[%clk 0:01:49]}  Kd8 {[%clk 0:02:51]} 12. Qxg7 {[%clk 0:01:47]}  Bxc3+ {[%clk 0:02:50]} 13. bxc3 {[%clk 0:01:47]}  Qf2+ {[%clk 0:02:45]} 0-1


[Site "https://www.chess.com"]

[Event "Titled Tuesday Blitz March 29 Early 2022"]
[White "Gu, Xiaobing"]
[Black "Isanzhulov, Arystan"]
[WhiteFideId "8602611"]
[BlackFideId "13711644"]
[WhiteElo "2174"]
[BlackElo "2296"]
[Result "0-1"]
[Round "08"]
[TimeControl "180+1"]
[Date "2022.03.30"]
[WhiteClock "0:01:18"]
[BlackClock "0:01:59"]

1. Nf3 {[%clk 0:02:59]}  b6 {[%clk 0:02:57]} 2. g3 {[%clk 0:02:59]}  Bb7 {[%clk 0:02:57]} 3. Bg2 {[%clk 0:02:59]}  f5 {[%clk 0:02:57]} 4. O-O {[%clk 0:02:59]}  Nf6 {[%clk 0:02:57]} 5. d3 {[%clk 0:02:55]}  e6 {[%clk 0:02:56]} 6. b3 {[%clk 0:02:53]}  Bb4 {[%clk 0:02:53]} 7. Bb2 {[%clk 0:02:51]}  O-O {[%clk 0:02:52]} 8. Nbd2 {[%clk 0:02:45]}  Qe8 {[%clk 0:02:52]} 9. a3 {[%clk 0:02:42]}  Be7 {[%clk 0:02:51]} 10. e4 {[%clk 0:02:29]}  Qh5 {[%clk 0:02:49]} 11. exf5 {[%clk 0:02:08]}  exf5 {[%clk 0:02:42]} 12. Re1 {[%clk 0:02:08]}  Nc6 {[%clk 0:02:38]} 13. Nd4 {[%clk 0:01:46]}  Ng4 {[%clk 0:02:27]} 14. h3 {[%clk 0:01:38]}  Nxd4 {[%clk 0:02:16]} 15. hxg4 {[%clk 0:01:33]}  fxg4 {[%clk 0:02:17]} 16. Bxb7 {[%clk 0:01:32]}  Rxf2 {[%clk 0:02:12]} 17. Kxf2 {[%clk 0:01:21]}  Rf8+ {[%clk 0:02:01]} 18. Ke3 {[%clk 0:01:20]}  Qe5+ {[%clk 0:01:58]} 19. Ne4 {[%clk 0:01:18]}  Bg5# {[%clk 0:01:59]} 0-1


[Site "https://www.chess.com"]

[Event "Titled Tuesday Blitz March 29 Early 2022"]
[White "Hua, Lefong"]
[Black "Fedoseev, Vladimir"]
[WhiteFideId "2602253"]
[BlackFideId "24130737"]
[WhiteElo "2607"]
[BlackElo "2726"]
[Result "0-1"]
[Round "08"]
[TimeControl "180+1"]
[Date "2022.03.29"]
[WhiteClock "0:01:42"]
[BlackClock "0:02:00"]

1. d4 {[%clk 0:03:00]}  Nf6 {[%clk 0:02:56]} 2. c4 {[%clk 0:03:00]}  g6 {[%clk 0:02:56]} 3. Nc3 {[%clk 0:03:00]}  Bg7 {[%clk 0:02:56]} 4. e4 {[%clk 0:03:01]}  d6 {[%clk 0:02:56]} 5. f4 {[%clk 0:03:01]}  c5 {[%clk 0:02:55]} 6. d5 {[%clk 0:03:01]}  e6 {[%clk 0:02:54]} 7. Nf3 {[%clk 0:03:01]}  exd5 {[%clk 0:02:55]} 8. cxd5 {[%clk 0:03:02]}  O-O {[%clk 0:02:55]} 9. Be2 {[%clk 0:03:02]}  Re8 {[%clk 0:02:55]} 10. Nd2 {[%clk 0:03:02]}  Ng4 {[%clk 0:02:48]} 11. Bxg4 {[%clk 0:02:58]}  Qh4+ {[%clk 0:02:48]} 12. g3 {[%clk 0:02:57]}  Qxg4 {[%clk 0:02:49]} 13. Qxg4 {[%clk 0:02:56]}  Bxg4 {[%clk 0:02:49]} 14. Kf2 {[%clk 0:02:47]}  Na6 {[%clk 0:02:39]} 15. h3 {[%clk 0:02:42]}  Bd7 {[%clk 0:02:34]} 16. Nc4 {[%clk 0:02:34]}  Bf8 {[%clk 0:02:25]} 17. a4 {[%clk 0:02:32]}  Nb4 {[%clk 0:02:24]} 18. Rd1 {[%clk 0:02:24]}  Bxh3 {[%clk 0:02:21]} 19. Ne3 {[%clk 0:02:12]}  Bd7 {[%clk 0:02:16]} 20. Kf3 {[%clk 0:02:02]}  h5 {[%clk 0:02:03]} 21. Ra3 {[%clk 0:01:45]}  Bg7 {[%clk 0:02:01]} 22. Nc4 {[%clk 0:01:42]}  Bg4+ {[%clk 0:02:00]} 0-1


[Site "https://www.chess.com"]

[Event "Titled Tuesday Blitz March 29 Early 2022"]
[White "Ianov, Viktor"]
[Black "Thomas, Anysia"]
[WhiteFideId "14102730"]
[BlackFideId "670472"]
[WhiteElo "2161"]
[BlackElo "2002"]
[Result "1-0"]
[Round "08"]
[TimeControl "180+1"]
[Date "2022.03.30"]
[WhiteClock "0:01:47"]
[BlackClock "0:00:03"]

1. Nf3 {[%clk 0:03:00]}  g6 {[%clk 0:02:59]} 2. g3 {[%clk 0:03:00]}  Bg7 {[%clk 0:02:59]} 3. Bg2 {[%clk 0:03:00]}  c5 {[%clk 0:03:00]} 4. c4 {[%clk 0:03:00]}  Nc6 {[%clk 0:03:00]} 5. Nc3 {[%clk 0:03:00]}  e6 {[%clk 0:03:00]} 6. O-O {[%clk 0:03:00]}  Nge7 {[%clk 0:03:01]} 7. d3 {[%clk 0:03:00]}  O-O {[%clk 0:02:57]} 8. Bg5 {[%clk 0:03:00]}  d5 {[%clk 0:02:55]} 9. Qc1 {[%clk 0:02:57]}  Re8 {[%clk 0:02:48]} 10. a3 {[%clk 0:02:53]}  b6 {[%clk 0:02:43]} 11. Rb1 {[%clk 0:02:52]}  Bb7 {[%clk 0:02:42]} 12. b4 {[%clk 0:02:51]}  dxc4 {[%clk 0:02:41]} 13. dxc4 {[%clk 0:02:50]}  cxb4 {[%clk 0:02:41]} 14. axb4 {[%clk 0:02:50]}  Qc7 {[%clk 0:02:37]} 15. Nb5 {[%clk 0:02:44]}  Qb8 {[%clk 0:02:31]} 16. c5 {[%clk 0:02:44]}  Nf5 {[%clk 0:02:19]} 17. Rd1 {[%clk 0:02:31]}  a6 {[%clk 0:02:14]} 18. Nd6 {[%clk 0:02:30]}  Nxd6 {[%clk 0:02:13]} 19. cxd6 {[%clk 0:02:30]}  f6 {[%clk 0:01:58]} 20. Be3 {[%clk 0:02:24]}  Rd8 {[%clk 0:01:54]} 21. d7 {[%clk 0:02:21]}  Qc7 {[%clk 0:01:47]} 22. b5 {[%clk 0:02:18]}  axb5 {[%clk 0:01:43]} 23. Rxb5 {[%clk 0:02:17]}  Rxd7 {[%clk 0:01:39]} 24. Bxb6 {[%clk 0:02:16]}  Rxd1+ {[%clk 0:01:11]} 25. Qxd1 {[%clk 0:02:16]}  Qf7 {[%clk 0:01:10]} 26. h4 {[%clk 0:02:12]}  Rc8 {[%clk 0:00:51]} 27. Be3 {[%clk 0:02:08]}  Ba6 {[%clk 0:00:27]} 28. Rb6 {[%clk 0:02:05]}  Bc4 {[%clk 0:00:08]} 29. Nd2 {[%clk 0:02:01]}  Ne5 {[%clk 0:00:08]} 30. Ne4 {[%clk 0:01:55]}  Bd5 {[%clk 0:00:05]} 31. Nd6 {[%clk 0:01:53]}  Qc7 {[%clk 0:00:04]} 32. Nxc8 {[%clk 0:01:53]}  Qxc8 {[%clk 0:00:05]} 33. Bxd5 {[%clk 0:01:53]}  exd5 {[%clk 0:00:04]} 34. Qxd5+ {[%clk 0:01:53]}  Nf7 {[%clk 0:00:05]} 35. Rb7 {[%clk 0:01:52]}  Qe8 {[%clk 0:00:03]} 36. Bf4 {[%clk 0:01:47]} 1-0


[Site "https://www.chess.com"]

[Event "Titled Tuesday Blitz March 29 Early 2022"]
[White "Jaferian, Koosha"]
[Black "Ilyasli, Ughur"]
[WhiteFideId "12507440"]
[BlackFideId "13416197"]
[WhiteElo "2622"]
[BlackElo "2476"]
[Result "1-0"]
[Round "08"]
[TimeControl "180+1"]
[Date "2022.03.30"]
[WhiteClock "0:00:10"]
[BlackClock "0:00:04"]

1. Nf3 {[%clk 0:03:00]}  Nf6 {[%clk 0:02:59]} 2. b3 {[%clk 0:03:00]}  g6 {[%clk 0:02:57]} 3. Bb2 {[%clk 0:03:01]}  Bg7 {[%clk 0:02:57]} 4. g3 {[%clk 0:03:01]}  b5 {[%clk 0:02:57]} 5. Bg2 {[%clk 0:03:01]}  Bb7 {[%clk 0:02:57]} 6. O-O {[%clk 0:03:02]}  O-O {[%clk 0:02:57]} 7. c4 {[%clk 0:03:02]}  bxc4 {[%clk 0:02:57]} 8. bxc4 {[%clk 0:03:03]}  c5 {[%clk 0:02:56]} 9. d3 {[%clk 0:03:03]}  Nc6 {[%clk 0:02:52]} 10. Nbd2 {[%clk 0:03:04]}  Rb8 {[%clk 0:02:51]} 11. Rb1 {[%clk 0:03:04]}  Ba8 {[%clk 0:02:49]} 12. Bc3 {[%clk 0:02:54]}  Qc7 {[%clk 0:02:27]} 13. Qc2 {[%clk 0:02:47]}  Nb4 {[%clk 0:02:22]} 14. Qa4 {[%clk 0:02:24]}  Bc6 {[%clk 0:02:10]} 15. Qa3 {[%clk 0:02:24]}  Nc2 {[%clk 0:01:47]} 16. Qxc5 {[%clk 0:02:06]}  d6 {[%clk 0:01:07]} 17. Qa5 {[%clk 0:02:02]}  Qxa5 {[%clk 0:01:01]} 18. Bxa5 {[%clk 0:02:03]}  Na3 {[%clk 0:00:58]} 19. Rb3 {[%clk 0:01:55]}  Rxb3 {[%clk 0:00:56]} 20. axb3 {[%clk 0:01:55]}  Rb8 {[%clk 0:00:52]} 21. Ra1 {[%clk 0:01:38]}  Nc2 {[%clk 0:00:49]} 22. Ra2 {[%clk 0:01:38]}  Bxf3 {[%clk 0:00:31]} 23. Nxf3 {[%clk 0:01:34]}  Nb4 {[%clk 0:00:20]} 24. Bxb4 {[%clk 0:01:35]}  Rxb4 {[%clk 0:00:21]} 25. Rxa7 {[%clk 0:01:35]}  Rxb3 {[%clk 0:00:20]} 26. Rxe7 {[%clk 0:01:34]}  Rb1+ {[%clk 0:00:20]} 27. Bf1 {[%clk 0:01:35]}  Ng4 {[%clk 0:00:17]} 28. Kg2 {[%clk 0:01:31]}  Bf6 {[%clk 0:00:15]} 29. Rd7 {[%clk 0:01:29]}  Rb6 {[%clk 0:00:12]} 30. h3 {[%clk 0:01:20]}  Ne5 {[%clk 0:00:12]} 31. Nxe5 {[%clk 0:01:20]}  Bxe5 {[%clk 0:00:12]} 32. e3 {[%clk 0:01:21]}  f5 {[%clk 0:00:10]} 33. d4 {[%clk 0:01:20]}  Bf6 {[%clk 0:00:10]} 34. Be2 {[%clk 0:01:18]}  h5 {[%clk 0:00:09]} 35. Bf3 {[%clk 0:01:19]}  h4 {[%clk 0:00:10]} 36. Bd5+ {[%clk 0:01:19]}  Kh8 {[%clk 0:00:09]} 37. gxh4 {[%clk 0:01:04]}  Bxh4 {[%clk 0:00:09]} 38. Kf3 {[%clk 0:01:00]}  Rb2 {[%clk 0:00:09]} 39. Kg2 {[%clk 0:00:43]}  Bxf2 {[%clk 0:00:09]} 40. Kf3 {[%clk 0:00:31]}  Bh4 {[%clk 0:00:08]} 41. e4 {[%clk 0:00:31]}  Rf2+ {[%clk 0:00:06]} 42. Ke3 {[%clk 0:00:32]}  f4+ {[%clk 0:00:06]} 43. Kd3 {[%clk 0:00:33]}  f3 {[%clk 0:00:06]} 44. e5 {[%clk 0:00:14]}  dxe5 {[%clk 0:00:05]} 45. dxe5 {[%clk 0:00:14]}  Rf1 {[%clk 0:00:05]} 46. Bxf3 {[%clk 0:00:08]}  Rxf3+ {[%clk 0:00:05]} 47. Ke4 {[%clk 0:00:09]}  Rxh3 {[%clk 0:00:04]} 48. e6 {[%clk 0:00:09]}  Rh2 {[%clk 0:00:04]} 49. Kd5 {[%clk 0:00:09]}  Re2 {[%clk 0:00:05]} 50. c5 {[%clk 0:00:07]}  Rd2+ {[%clk 0:00:05]} 51. Kc6 {[%clk 0:00:07]}  Rxd7 {[%clk 0:00:04]} 52. Kxd7 {[%clk 0:00:08]}  Kg7 {[%clk 0:00:04]} 53. c6 {[%clk 0:00:08]}  g5 {[%clk 0:00:03]} 54. c7 {[%clk 0:00:09]}  g4 {[%clk 0:00:04]} 55. c8=Q {[%clk 0:00:09]}  g3 {[%clk 0:00:05]} 56. Qc4 {[%clk 0:00:09]}  g2 {[%clk 0:00:03]} 57. Qg4+ {[%clk 0:00:10]}  Kf6 {[%clk 0:00:04]} 58. Qxh4+ {[%clk 0:00:09]}  Kf5 {[%clk 0:00:04]} 59. Qg3 {[%clk 0:00:10]} 1-0


[Site "https://www.chess.com"]

[Event "Titled Tuesday Blitz March 29 Early 2022"]
[White "Jaskolka, Tomasz"]
[Black "Bachmann, Axel"]
[WhiteFideId "1170791"]
[BlackFideId "3700488"]
[WhiteElo "2073"]
[BlackElo "2587"]
[Result "1-0"]
[Round "08"]
[TimeControl "180+1"]
[Date "2022.03.30"]
[WhiteClock "0:01:10"]
[BlackClock "0:00:06"]

1. d4 {[%clk 0:02:58]}  Nf6 {[%clk 0:02:59]} 2. Bf4 {[%clk 0:02:58]}  b6 {[%clk 0:02:59]} 3. e3 {[%clk 0:02:58]}  Bb7 {[%clk 0:02:59]} 4. Nf3 {[%clk 0:02:59]}  g6 {[%clk 0:03:00]} 5. Nbd2 {[%clk 0:02:59]}  Bg7 {[%clk 0:03:00]} 6. Bd3 {[%clk 0:02:59]}  d6 {[%clk 0:02:56]} 7. c3 {[%clk 0:02:59]}  O-O {[%clk 0:02:55]} 8. h4 {[%clk 0:02:59]}  h5 {[%clk 0:02:52]} 9. Qc2 {[%clk 0:02:58]}  Qe8 {[%clk 0:02:46]} 10. O-O-O {[%clk 0:02:55]}  a5 {[%clk 0:02:45]} 11. Ng5 {[%clk 0:02:52]}  e5 {[%clk 0:02:32]} 12. Bg3 {[%clk 0:02:49]}  a4 {[%clk 0:02:27]} 13. Kb1 {[%clk 0:02:46]}  a3 {[%clk 0:02:03]} 14. b3 {[%clk 0:02:43]}  c5 {[%clk 0:02:00]} 15. Nc4 {[%clk 0:02:38]}  Qe7 {[%clk 0:01:27]} 16. dxe5 {[%clk 0:02:32]}  Nd5 {[%clk 0:01:25]} 17. exd6 {[%clk 0:02:29]}  Qd8 {[%clk 0:01:18]} 18. Bxg6 {[%clk 0:02:18]}  Nxc3+ {[%clk 0:01:14]} 19. Kc1 {[%clk 0:02:18]}  Nxa2+ {[%clk 0:01:08]} 20. Qxa2 {[%clk 0:02:16]}  fxg6 {[%clk 0:00:57]} 21. Ne6 {[%clk 0:02:08]}  Qf6 {[%clk 0:00:35]} 22. Nxf8 {[%clk 0:02:01]}  Bxg2 {[%clk 0:00:34]} 23. Be5 {[%clk 0:01:53]}  Qxf8 {[%clk 0:00:29]} 24. Bxg7 {[%clk 0:01:54]}  Qxg7 {[%clk 0:00:28]} 25. Rhg1 {[%clk 0:01:38]}  Be4 {[%clk 0:00:24]} 26. Kd2 {[%clk 0:01:24]}  Nc6 {[%clk 0:00:20]} 27. Qa1 {[%clk 0:01:19]}  a2 {[%clk 0:00:14]} 28. Qxg7+ {[%clk 0:01:15]}  Kxg7 {[%clk 0:00:15]} 29. Ra1 {[%clk 0:01:15]}  Nb4 {[%clk 0:00:14]} 30. Nxb6 {[%clk 0:01:14]}  Rd8 {[%clk 0:00:14]} 31. Nc4 {[%clk 0:01:14]}  Kf6 {[%clk 0:00:10]} 32. Kc3 {[%clk 0:01:09]}  Bd5 {[%clk 0:00:09]} 33. f4 {[%clk 0:01:06]}  Bxc4 {[%clk 0:00:09]} 34. Kxc4 {[%clk 0:01:06]}  Rxd6 {[%clk 0:00:09]} 35. Kxc5 {[%clk 0:01:07]}  Re6 {[%clk 0:00:04]} 36. Kxb4 {[%clk 0:01:07]}  Rxe3 {[%clk 0:00:05]} 37. Rxa2 {[%clk 0:01:07]}  Re4+ {[%clk 0:00:05]} 38. Kc5 {[%clk 0:01:08]}  Rxf4 {[%clk 0:00:06]} 39. Ra6+ {[%clk 0:01:08]}  Kf5 {[%clk 0:00:05]} 40. Rg5+ {[%clk 0:01:07]}  Ke4 {[%clk 0:00:05]} 41. Ra4+ {[%clk 0:01:08]}  Kf3 {[%clk 0:00:05]} 42. Rxf4+ {[%clk 0:01:09]}  Kxf4 {[%clk 0:00:06]} 43. Rxg6 {[%clk 0:01:10]} 1-0


[Site "https://www.chess.com"]

[Event "Titled Tuesday Blitz March 29 Early 2022"]
[White "Johnson, Ben"]
[Black "Hartikainen, Jarmo"]
[WhiteFideId "2010917"]
[BlackFideId "503134"]
[WhiteElo "2197"]
[BlackElo "2057"]
[Result "0-1"]
[Round "08"]
[TimeControl "180+1"]
[Date "2022.03.30"]
[WhiteClock "0:00:01"]
[BlackClock "0:00:08"]

1. Nf3 {[%clk 0:03:00]}  Nf6 {[%clk 0:02:57]} 2. c4 {[%clk 0:03:00]}  g6 {[%clk 0:02:56]} 3. b3 {[%clk 0:02:58]}  Bg7 {[%clk 0:02:56]} 4. Bb2 {[%clk 0:02:58]}  c5 {[%clk 0:02:55]} 5. g3 {[%clk 0:02:48]}  O-O {[%clk 0:02:54]} 6. Bg2 {[%clk 0:02:48]}  Nc6 {[%clk 0:02:54]} 7. O-O {[%clk 0:02:47]}  d6 {[%clk 0:02:53]} 8. d4 {[%clk 0:02:44]}  cxd4 {[%clk 0:02:39]} 9. Nxd4 {[%clk 0:02:45]}  Nxd4 {[%clk 0:02:33]} 10. Qxd4 {[%clk 0:02:40]}  Qc7 {[%clk 0:02:11]} 11. Nc3 {[%clk 0:02:26]}  Qc5 {[%clk 0:01:54]} 12. Qxc5 {[%clk 0:01:49]}  dxc5 {[%clk 0:01:53]} 13. Nb5 {[%clk 0:01:48]}  a6 {[%clk 0:01:37]} 14. Nc7 {[%clk 0:01:48]}  Rb8 {[%clk 0:01:38]} 15. Rad1 {[%clk 0:01:41]}  Bf5 {[%clk 0:01:23]} 16. h3 {[%clk 0:01:26]}  h5 {[%clk 0:01:11]} 17. Kh2 {[%clk 0:01:24]}  Rfc8 {[%clk 0:00:58]} 18. Be5 {[%clk 0:01:16]}  Ng4+ {[%clk 0:00:50]} 19. hxg4 {[%clk 0:01:15]}  Bxe5 {[%clk 0:00:50]} 20. gxf5 {[%clk 0:01:06]}  Rxc7 {[%clk 0:00:41]} 21. fxg6 {[%clk 0:01:03]}  fxg6 {[%clk 0:00:42]} 22. Rd5 {[%clk 0:01:01]}  Bd6 {[%clk 0:00:27]} 23. Be4 {[%clk 0:00:59]}  Kf7 {[%clk 0:00:23]} 24. Rg5 {[%clk 0:00:54]}  Rg8 {[%clk 0:00:19]} 25. Kg2 {[%clk 0:00:48]}  e6 {[%clk 0:00:18]} 26. Rd1 {[%clk 0:00:44]}  Be7 {[%clk 0:00:18]} 27. Re5 {[%clk 0:00:18]}  Bf6 {[%clk 0:00:18]} 28. Rxe6 {[%clk 0:00:19]}  Kxe6 {[%clk 0:00:18]} 29. Bd5+ {[%clk 0:00:19]}  Ke7 {[%clk 0:00:17]} 30. Bxg8 {[%clk 0:00:19]}  b5 {[%clk 0:00:17]} 31. Bd5 {[%clk 0:00:14]}  bxc4 {[%clk 0:00:17]} 32. Bxc4 {[%clk 0:00:10]}  a5 {[%clk 0:00:17]} 33. Rd5 {[%clk 0:00:10]}  a4 {[%clk 0:00:14]} 34. e4 {[%clk 0:00:10]}  axb3 {[%clk 0:00:14]} 35. axb3 {[%clk 0:00:11]}  Bd4 {[%clk 0:00:13]} 36. f4 {[%clk 0:00:10]}  Rb7 {[%clk 0:00:12]} 37. Kf3 {[%clk 0:00:10]}  Rb8 {[%clk 0:00:12]} 38. e5 {[%clk 0:00:08]}  Ra8 {[%clk 0:00:13]} 39. Ke4 {[%clk 0:00:08]}  Ra2 {[%clk 0:00:12]} 40. b4 {[%clk 0:00:07]}  Ra3 {[%clk 0:00:13]} 41. bxc5 {[%clk 0:00:06]}  Bf2 {[%clk 0:00:13]} 42. c6 {[%clk 0:00:06]}  Ra7 {[%clk 0:00:12]} 43. Bb5 {[%clk 0:00:03]}  Bxg3 {[%clk 0:00:11]} 44. Rd6 {[%clk 0:00:02]}  h4 {[%clk 0:00:10]} 45. Rxg6 {[%clk 0:00:02]}  Ra4+ {[%clk 0:00:09]} 46. Kd5 {[%clk 0:00:01]}  Ra5 {[%clk 0:00:08]} 0-1


[Site "https://www.chess.com"]

[Event "Titled Tuesday Blitz March 29 Early 2022"]
[White "Karolczuk, Iwo"]
[Black "Jumabayev, Rinat"]
[WhiteFideId "21816972"]
[BlackFideId "13702661"]
[WhiteElo "2243"]
[BlackElo "2561"]
[Result "1-0"]
[Round "08"]
[TimeControl "180+1"]
[Date "2022.03.29"]
[WhiteClock "0:00:47"]
[BlackClock "0:00:46"]

1. e4 {[%clk 0:03:00]}  e6 {[%clk 0:02:53]} 2. Qe2 {[%clk 0:02:50]}  d5 {[%clk 0:02:54]} 3. exd5 {[%clk 0:02:49]}  Qxd5 {[%clk 0:02:55]} 4. Nc3 {[%clk 0:02:49]}  Qd8 {[%clk 0:02:55]} 5. g3 {[%clk 0:02:48]}  Nf6 {[%clk 0:02:52]} 6. Bg2 {[%clk 0:02:48]}  Be7 {[%clk 0:02:50]} 7. Nf3 {[%clk 0:02:48]}  c5 {[%clk 0:02:49]} 8. O-O {[%clk 0:02:47]}  Nc6 {[%clk 0:02:49]} 9. b3 {[%clk 0:02:47]}  O-O {[%clk 0:02:46]} 10. Bb2 {[%clk 0:02:47]}  b6 {[%clk 0:02:45]} 11. Rad1 {[%clk 0:02:40]}  a5 {[%clk 0:02:38]} 12. Rfe1 {[%clk 0:02:35]}  Ba6 {[%clk 0:02:37]} 13. d3 {[%clk 0:02:35]}  Rc8 {[%clk 0:02:38]} 14. Ne4 {[%clk 0:02:26]}  Nd4 {[%clk 0:02:33]} 15. Qd2 {[%clk 0:02:11]}  a4 {[%clk 0:02:08]} 16. c3 {[%clk 0:02:06]}  Nf5 {[%clk 0:01:50]} 17. Ne5 {[%clk 0:02:02]}  Nd5 {[%clk 0:01:42]} 18. Qc2 {[%clk 0:01:40]}  axb3 {[%clk 0:01:40]} 19. axb3 {[%clk 0:01:40]}  Qc7 {[%clk 0:01:40]} 20. Nf3 {[%clk 0:01:24]}  Rfd8 {[%clk 0:01:40]} 21. Qc1 {[%clk 0:01:19]}  b5 {[%clk 0:01:37]} 22. Qd2 {[%clk 0:01:02]}  Nb6 {[%clk 0:01:32]} 23. Ra1 {[%clk 0:01:01]}  Bb7 {[%clk 0:01:31]} 24. Ra7 {[%clk 0:00:59]}  Ra8 {[%clk 0:01:31]} 25. Rxa8 {[%clk 0:00:58]}  Bxa8 {[%clk 0:01:31]} 26. Qe2 {[%clk 0:00:54]}  Bf8 {[%clk 0:01:22]} 27. c4 {[%clk 0:00:52]}  bxc4 {[%clk 0:01:15]} 28. bxc4 {[%clk 0:00:53]}  Nd7 {[%clk 0:01:13]} 29. Nfg5 {[%clk 0:00:51]}  h6 {[%clk 0:01:04]} 30. Nxf7 {[%clk 0:00:48]}  Kxf7 {[%clk 0:00:46]} 31. Ng5+ {[%clk 0:00:47]} 1-0


[Site "https://www.chess.com"]